Cogmind - Beta 15 @@@ ROGUE MODE // 2025.05.22 @ 15:13:57 // Winter2019/RPGLIKE Player: ASS BUSTER Result: Destroyed by P-70 Sage with Tesla Rifle Performance ------------- Evolutions (5) 2500 Regions Visited (5) 1000 Robots Destroyed (150) 750 Value Destroyed (4473) 4473 Prototype IDs (13) 260 Alien Tech Used (0) 0 Bonus (963) 963 TOTAL SCORE: 9946 Bonus ------- High Alert Combat Kills 439 Follower Combat Kills 135 Registered with UFD 300 Met Optimus in HQ 500 Friendly Fire -411 Cogmind --------- Core Integrity 0/1300 Matter 217/400 Energy 49/440 System Corruption 5% Temperature Cool (36) Movement Rolling (95) Ox1 Location -5/Factory Parts ------- > --- POWER (1) -------- Improved Deuterium Engine > --- PROPULSION (2) --- Wheel Wheel > --- UTILITY (4) ------ Weapon Cycler Improved Transmission Jammer Experimental Power Shielding Force Field > --- WEAPON (5) ------- Plasma Cannon Heavy Battle Rifle KE Penetrator KE Penetrator KE Penetrator > --- INVENTORY (0) ---- (None) Peak State ------------ > --- POWER ------------ Improved Deuterium Engine > --- PROPULSION ------- Armored Medium Treads Armored Wheel > --- UTILITY ---------- Weapon Cycler Cloaking Device Experimental Power Shielding Force Field > --- WEAPON ----------- Proton Cannon Heavy Battle Rifle KE Penetrator KE Penetrator KE Penetrator > --- INVENTORY -------- (None) [Rating: 59] Favorites ----------- Power Improved Deuterium Engine Engine Improved Deuterium Engine Power Core Nuclear Core Propulsion Armored Wheel Treads Armored Medium Treads Wheel Armored Wheel Hover Unit Hover Unit Flight Unit Flight Unit Utility Weapon Cycler Device Weapon Cycler Protection Reactive Plating Weapon Advanced Assault Cannon Energy Gun Medium Laser Energy Cannon Proton Cannon Ballistic Gun Assault Rifle Ballistic Cannon Advanced Assault Cannon Launcher Grenade Launcher Special Weapon Mining Laser Build | -11 -10 -10 -7 -7 -5 ------- Run | Yrd Mat Sub Rec Scr Fac Slots Evolved 8 | 4 3 . 1 . . Power . | . . . . . . Propulsion 1 | . 1 . . . . Utility 3 | 1 1 . 1 . . Weapon 4 | 3 1 . . . . Parts Attached 53 | 8 12 1 15 7 10 Power 5 | 1 1 . 2 1 . Engine 4 | 1 1 . 1 1 . Core 1 | . . . 1 . . Reactor . | . . . . . . Propulsion 11 | 1 5 . 2 . 3 Treads 1 | . . . . . 1 Leg . | . . . . . . Wheel 6 | 1 1 . 2 . 2 Hover 2 | . 2 . . . . Flight 2 | . 2 . . . . Utility 11 | 2 . . 4 2 3 Device 8 | 2 . . 2 2 2 Storage . | . . . . . . Processor . | . . . . . . Hackware . | . . . . . . Protection 3 | . . . 2 . 1 Artifact . | . . . . . . Weapon 26 | 4 6 1 7 4 4 Energy Gun 6 | 1 4 . 1 . . Energy Cannon 3 | . . . 1 1 1 Ballistic Gun 8 | 2 . . 1 2 3 Ballistic Cannon 5 | . . . 4 1 . Launcher 1 | . 1 . . . . Special Weapon 3 | 1 1 1 . . . Impact Weapon . | . . . . . . Slashing Weapon . | . . . . . . Piercing Weapon . | . . . . . . Special Melee Weapon . | . . . . . . Unidentified Prototypes 1 | . . . . . 1 Parts Lost 4 | . . 2 . . 2 Power 1 | . . 1 . . . Propulsion 1 | . . . . . 1 Utility 2 | . . 1 . . 1 Weapon . | . . . . . . Highest Loss Streak 1 | . . 1 . . 1 To Critical Strikes 1 | . . 1 . . . Average Backups . | . . . . . . Power . | . . . . . . Propulsion . | . . . . . . Utility . | . . . . . . Weapon . | . . . . . . Tool/Special . | . . . . . . Unused Backups . | . . . . . . Power . | . . . . . . Propulsion . | . . . . . . Utility . | . . . . . . Weapon . | . . . . . . Tool/Special . | . . . . . . Average Slot Usage (%) 90 | . 87 80 86 97 98 Engine 7 | . 10 6 1 8 8 Wheel 7 | . . . 6 16 15 Hover 6 | . 10 18 11 . . Device 17 | . 21 13 12 15 21 Protection 7 | . . . 12 13 10 Energy Gun 10 | . 22 22 2 1 . Energy Cannon 3 | . . . 5 6 8 Ballistic Gun 8 | . 11 9 1 5 20 Ballistic Cannon 14 | . . . 28 27 11 Launcher 3 | . 8 9 1 . . Peak Build Rating 59 | 10 12 13 40 47 59 Average Rating 27 | 7 10 11 29 44 49 On Entrance 19 | . 10 12 9 40 44 Naked Turns . | . . . . . . Heaviest Build 67 | 10 16 16 64 67 65 Greatest Support 29 | 16 17 17 29 29 29 Greatest Overweight (x) 6 | . 2 . 6 2 3 Average Overweight (x) 1 | . 1 . 1 1 1 Largest Inventory Capacity . | . . . . . . Average Capacity . | . . . . . . Most Carried . | . . . . . . Average Carried . | . . . . . . Final Capacity . | . . . . . . Final Carried . | . . . . . . Class Distribution -------------------- 45% | Gunner 34% | Hacker-Tank 20% | Hacker-Gunner Dominant Class ---------------- Gunner | -10/Materials Gunner | -10/Subcaves Hacker-Tank | -7/Recycling Hacker-Tank | -7/Scraptown Hacker-Gunner | -5/Factory Resources | -11 -10 -10 -7 -7 -5 ----------- Run | Yrd Mat Sub Rec Scr Fac Matter Collected 5829 | 366 1201 173 1559 661 1869 Remotely . | . . . . . . Salvage Created 4818 | 276 1735 180 1114 . 1513 Parts 265 | 35 119 11 34 . 66 Haulers Intercepted 2 | . 2 . . . . Recyclers Shooed 7 | . 2 . 2 . 3 Parts Field Recycled . | . . . . . . Retrieved Matter . | . . . . . . Parts Self-Destructed 5 | . . 5 . . . Prevented . | . . . . . . Kills | -11 -10 -10 -7 -7 -5 ------- Run | Yrd Mat Sub Rec Scr Fac Combat Hostiles Destroyed 75 | . 23 10 11 . 31 Guns 33 | . 15 4 . . 14 Cannons 27 | . 2 . 10 . 15 AOE 15 | . 6 6 1 . 2 Classes Destroyed 19 | 3 6 2 6 . 2 Worker 42 | 2 34 . 1 . 5 Builder 8 | . 4 . 2 . 2 Tunneler 12 | 9 2 . 1 . . Hauler 2 | . 2 . . . . Recycler 17 | 1 7 . 7 . 2 Operator 1 | . 1 . . . . Turret 2 | . . 2 . . . Watcher 3 | . 3 . . . . Swarmer 18 | . 14 4 . . . Grunt 26 | . 9 . 1 . 16 Brawler 2 | . . . 1 . 1 Duelist 2 | . . . . . 2 Protector 2 | . . . 2 . . Sentry 8 | . . . 3 . 5 Demolisher 2 | . . . 2 . . Hunter 1 | . . . 1 . . Programmer 8 | . . . 1 . 7 Subdweller 6 | . . 6 . . . Scrapoid 2 | . . . . . 2 Best Kill Streak 11 | 5 5 5 5 . 11 Combat Bots Only 8 | . 3 4 2 . 8 Max Kills in Single Turn 3 | 1 3 2 3 . 3 Gunslinging 1 | . 1 1 . . . Exploded 3 | . 3 2 1 . 1 Melee . | . . . . . . Uniques/NPCs Destroyed . | . . . . . . Combat | -11 -10 -10 -7 -7 -5 -------- Run | Yrd Mat Sub Rec Scr Fac Hostile Shots Fired 467 | . 77 74 64 . 252 Missed 127 | . 15 20 21 . 71 Hits 340 | . 62 54 43 . 181 Melee 9 | . . . . . 9 Projectile 331 | . 62 54 43 . 172 AOE 7 | . . . 7 . . Critical Strikes 22 | . 2 3 1 . 16 Actively Blocked 1 | . . . . . 1 Part Disruptions 1 | . . . 1 . . Damage Taken 4500 | . 651 725 750 . 2374 Core 3406 | . 531 576 609 . 1690 Absorbed by Shields 1208 | . . . . . 1208 Redirected to Core 2700 | . 383 465 370 . 1482 Redirected to Shielding 147 | . . . . . 147 Ignored by Resistances 177 | . . . 8 . 169 Core Remaining (%) 64 | 100 . . . 29 . Volleys Fired 430 | 32 204 23 74 . 97 Largest 5 | 4 4 5 5 . 5 Hottest 234 | 180 220 220 234 . 225 Shots Fired 1607 | 98 683 93 310 . 423 Gun 1082 | 96 618 75 70 . 223 Cannon 429 | . . . 229 . 200 Launcher 65 | . 39 15 11 . . Special 31 | 2 26 3 . . . Kinetic 871 | 64 221 23 218 . 345 Thermal 622 | 34 412 49 81 . 46 Explosive 65 | . 39 15 11 . . Electromagnetic 49 | . 11 6 . . 32 Robot Hit Streak 33 | 8 19 33 13 . 15 Robot Miss Streak 7 | 3 3 2 7 . 5 Penetration Max 1 | . . . . . 1 Secondary Targets 3 | . 1 1 . . 1 Max Gunslinging Chain 1 | . 1 1 . . 1 Shots Hit Robots 535 | 25 181 51 82 . 196 Core Hits 329 | 15 94 25 75 . 120 Critical Kills 2 | . 1 . . . 1 Critical Parts Destroyed 1 | . . . . . 1 Critical Strikes 27 | . 12 2 7 . 6 Burn 15 | . 11 1 3 . . Destroy 4 | . 1 1 . . 2 Blast 7 | . . . 4 . 3 Corrupt 1 | . . . . . 1 Melee Attacks . | . . . . . . Impact . | . . . . . . Slashing . | . . . . . . Piercing . | . . . . . . Sneak Attacks . | . . . . . . Combat Hostiles . | . . . . . . Follow-up Attacks . | . . . . . . Damage Inflicted 13936 | 326 3036 1297 2300 . 6977 Guns 6374 | 326 1983 490 241 . 3334 Cannons 4790 | . . . 1991 . 2799 Explosions 2666 | . 980 786 68 . 832 Melee . | . . . . . . Ramming 13 | . 1 . . . 12 Kinetic 7605 | 137 550 155 1799 . 4964 Thermal 3170 | 189 1532 321 433 . 695 Explosive 2538 | . 883 786 68 . 801 Electromagnetic 610 | . 70 35 . . 505 Impact . | . . . . . . Slashing . | . . . . . . Piercing . | . . . . . . Highest Corruption 5 | . . . 4 . 5 Average Corruption 1 | . . . 1 . 1 Corruption Purged . | . . . . . . Corruption Blocked . | . . . . . . Effects 28 | . . . 20 . 8 Message Errors 5 | . . . 5 . . Matter Fused 11 | . . . 8 . 3 Heat Flow Errors 5 | . . . 2 . 3 Energy Discharges 2 | . . . 2 . . Data Loss (minor) 1 | . . . 1 . . Data Loss (major) 2 | . . . 1 . 1 Alerts 1 | . . . 1 . . Weapon Failures 1 | . . . . . 1 Overload Shots . | . . . . . . Overflow Damage 310 | . 166 . 66 . 78 Projectiles 138 | . 9 . 66 . 63 Explosions 172 | . 157 . . . 15 Melee . | . . . . . . Knockbacks 32 | . . . 23 . 9 Impact . | . . . . . . Kinetic 30 | . . . 22 . 8 Secondary 2 | . . . 1 . 1 Self-Inflicted Damage 174 | . 24 29 46 . 75 Shots 7 | . 2 2 2 . 1 Rammed 2 | . 1 . . . 1 Targets Rammed 2 | . 1 . . . 1 Kicked . | . . . . . . Crushed . | . . . . . . Highest Temperature 441 | 216 415 376 441 . 422 Average Temperature 93 | 88 92 76 98 . 95 Received Heat Transfer 1277 | . 228 484 30 . 535 Effects 12 | . 5 . 2 . 5 Shutdowns 2 | . 1 . . . 1 Energy Bleed 4 | . . . 1 . 3 Interference 5 | . 4 . 1 . . Damage (major) 1 | . . . . . 1 Siege Activations . | . . . . . . Martial Activations . | . . . . . . Shielding Activations . | . . . . . . Robots Disrupted . | . . . . . . Combat Hostiles . | . . . . . . Robots Corrupted . | . . . . . . Combat Hostiles . | . . . . . . Parts Fried 1 | . . . . . 1 Impact Corruptions . | . . . . . . Robots Melted . | . . . . . . Combat Hostiles . | . . . . . . Parts Melted 10 | . 8 . 1 . 1 Heat Transferred 8964 | 425 4988 1208 1141 . 1202 Parts Sabotaged . | . . . . . . Parts Stolen . | . . . . . . Parts Stripped . | . . . . . . Power Chain Reactions 1 | . . . . . 1 Alert | -11 -10 -10 -7 -7 -5 ------- Run | Yrd Mat Sub Rec Scr Fac Maximum Alert Level 3 | . 3 . 1 . 3 Low Security (%) 31 | 100 17 . 66 . 12 Level 1 14 | . 4 . 33 . 22 Level 2 22 | . 25 . . . 49 Level 3 32 | . 52 . . . 14 Level 4 . | . . . . . . Level 5 . | . . . . . . High Security . | . . . . . . Max Security . | . . . . . . Peak Influence 1017 | 15 961 . 364 . 1017 Initial 171 | . . . 171 . . Average 463 | 3 618 . 164 . 461 Influence Increases 4419 | 60 1716 165 890 . 1588 Destroy 0b10 Robot/C 1440 | . 460 120 180 . 680 Destroy 0b10 Robot/NC 480 | 60 265 . 105 . 50 Destroy Leader 262 | . 110 . . . 152 Allied During Kill 42 | . . . . . 42 Successful Hack 36 | . 12 . 18 . 6 Disable Machine 1290 | . 600 . 435 . 255 Anti-Garrison Action 150 | . . . . . 150 Destroy Structure 524 | . 254 . 152 . 118 Lose Combat Pursuer 195 | . 15 45 . . 135 Influence Decreases 3402 | 60 755 768 955 293 571 Entered New Map 942 | . . 462 187 293 . Time Decay 2210 | 60 755 286 618 . 491 Lost Part 40 | . . 20 . . 20 Lost Ally 60 | . . . . . 60 Purge Threat 150 | . . . 150 . . Squads Dispatched 17 | . 4 . . . 13 Investigation 4 | . 3 . . . 1 Extermination 3 | . . . . . 3 Reinforcement 4 | . 1 . . . 3 Assault 3 | . . . . . 3 Garrison 3 | . . . . . 3 Intercept . | . . . . . . Searches Triggered . | . . . . . . Construction Impeded 1 | . . . . . 1 Haulers Reinforced 1 | . . . . . 1 Active Scanning Responses . | . . . . . . Cargo Convoy Interrupts . | . . . . . . Stealth | -11 -10 -10 -7 -7 -5 --------- Run | Yrd Mat Sub Rec Scr Fac Distress Signals 3 | . 1 . 1 . 1 Communications Jammed 24 | . . . . . 24 Distress Signals 24 | . . . . . 24 Times Spotted 114 | . 35 19 7 . 53 Peak Tracking Total 9 | . 3 6 3 . 9 Tactical Retreats 7 | . 1 2 . . 4 Traps | -11 -10 -10 -7 -7 -5 ------- Run | Yrd Mat Sub Rec Scr Fac Traps Triggered 3 | . 3 . . . . Indirectly . | . . . . . . Trap Hack Attempts . | . . . . . . Triggered . | . . . . . . Disarmed . | . . . . . . Reprogrammed . | . . . . . . Reused . | . . . . . . Traps Extracted . | . . . . . . Installed . | . . . . . . Triggered . | . . . . . . Machines | -11 -10 -10 -7 -7 -5 ---------- Run | Yrd Mat Sub Rec Scr Fac Machines Disabled 92 | . 41 4 29 . 18 Max in Single Turn 4 | . 4 1 3 . 2 Garrison Access 1 | . . . . . 1 Machines Repaired . | . . . . . . Machines Dismantled . | . . . . . . Machines Sabotaged . | . . . . . . Overloaded Fab Kills . | . . . . . . Hacking | -11 -10 -10 -7 -7 -5 --------- Run | Yrd Mat Sub Rec Scr Fac Machines Accessed 26 | . 7 3 8 6 2 Terminals 14 | . 6 . 6 . 2 Fabricators . | . . . . . . Repair Stations . | . . . . . . Recycling Units 3 | . 1 . 2 . . Scanalyzers . | . . . . . . Garrison Access . | . . . . . . Total Hacks 91 | . 16 6 20 44 5 Successful 68 | . 7 6 9 44 2 Failed 23 | . 9 . 11 . 3 Catastrophic 2 | . 1 . 1 . . Database Lockouts . | . . . . . . Manual . | . . . . . . Terminals 36 | . 14 . 17 . 5 Fabricators . | . . . . . . Repair Stations . | . . . . . . Recycling Units 5 | . 2 . 3 . . Scanalyzers . | . . . . . . Garrison Access . | . . . . . . Terminal Hacks 66 | . 6 6 8 44 2 Record 49 | . 2 4 . 43 . Robot Analysis 1 | . . . 1 . . Prototype ID Bank 3 | . 1 . 2 . . Open Door 1 | . . 1 . . . Branch Access Points 1 | . 1 . . . . Terminal Index 2 | . . . 1 . 1 Recycling Unit Index 1 | . 1 . . . . Unreport Threat 1 | . . . 1 . . Maintenance Status 1 | . . . . . 1 Registered Components 1 | . . . 1 . . Zone Layout 3 | . 1 . 2 . . Proto ID Catalog 1 | . . . . 1 . Release Object 1 | . . 1 . . . Fabricator Hacks . | . . . . . . Repair Station Hacks . | . . . . . . Recycling Unit Hacks 2 | . 1 . 1 . . Retrieve Matter 1 | . . . 1 . . Retrieve Components 1 | . 1 . . . . Scanalyzer . | . . . . . . Garrison Access Hacks . | . . . . . . Unauthorized Hacks . | . . . . . . Terminals . | . . . . . . Fabricators . | . . . . . . Repair Stations . | . . . . . . Recycling Units . | . . . . . . Scanalyzers . | . . . . . . Garrison Access . | . . . . . . Data Cores Recovered . | . . . . . . Used . | . . . . . . Hacking Detections 14 | . 7 . 5 . 2 Full Trace Events 2 | . 1 . 1 . . Feedback Events 1 | . . . 1 . . Corruption 1 | . . . 1 . . Feedback Blocked . | . . . . . . Robot Schematics Acquired . | . . . . . . Robots Built . | . . . . . . Authchips . | . . . . . . Time . | . . . . . . Total Robot Build Rating . | . . . . . . Part Schematics Acquired . | . . . . . . Parts Built . | . . . . . . Authchips . | . . . . . . Time . | . . . . . . Total Part Build Rating . | . . . . . . Parts Repaired . | . . . . . . Time . | . . . . . . Parts Recycled . | . . . . . . Recycled Matter . | . . . . . . Retrieved Matter . | . . . . . . Retrieved Components 9 | . 9 . . . . Parts Scanalyzed . | . . . . . . Part Schematics Acquired . | . . . . . . Parts Damaged . | . . . . . . Bothacking | -11 -10 -10 -7 -7 -5 ------------ Run | Yrd Mat Sub Rec Scr Fac Used RIF Installer . | . . . . . . Robots Hacked . | . . . . . . Non-combat . | . . . . . . Combat . | . . . . . . Robot Hacks Applied . | . . . . . . Relay Couplers Released 1 | . . . . . 1 Machine Destruction 1 | . . . . . 1 Fabnet Peak Effective % . | . . . . . . Robots Rewired . | . . . . . . Allies Hacked . | . . . . . . Hacks Repelled . | . . . . . . Allies | -11 -10 -10 -7 -7 -5 -------- Run | Yrd Mat Sub Rec Scr Fac Total Allies 5 | . . . . 5 . Largest Group 5 | . . . . 5 5 Highest-Rated Group 235 | . . . . 235 235 Highest-Rated Ally 47 | . . . . 47 47 Total Orders . | . . . . . . Ally Attacks 46 | . . . . . 46 Total Damage 735 | . . . . . 735 Kills 4 | . . . . . 4 Allies Corrupted . | . . . . . . Allies Melted . | . . . . . . Intel | -11 -10 -10 -7 -7 -5 ------- Run | Yrd Mat Sub Rec Scr Fac Active Infowar (turns) 6556 | 157 4998 508 92 . 801 Terrain 5755 | 157 4998 508 92 . . Seismic 5432 | 153 4974 305 . . . Cloaking 204 | . . . . . 204 Jamming 597 | . . . . . 597 Robot Analysis Total 1 | . . . 1 . . Derelict Logs Recovered 1 | . . 1 . . . Drone Launches . | . . . . . . Drone Recoveries . | . . . . . . Exploration | -11 -10 -10 -7 -7 -5 ------------- Run | Yrd Mat Sub Rec Scr Fac Turns Passed 13647 | 244 4998 638 2201 4205 1361 Spaces Moved 8821 | 116 2041 912 1476 3436 840 Core 9 | 5 3 . 1 . . Treads . | . . . . . . Legs . | . . . . . . Wheels 5012 | 111 36 . 589 3436 840 Hover 3798 | . 2000 912 886 . . Flight 2 | . 2 . . . . Fastest Speed 50 | 50 56 56 56 105 95 Average Speed 120 | 97 155 56 122 119 106 Slowest Speed 360 | 100 180 56 360 120 125 Overloaded Moves . | . . . . . . Propulsion Burnouts . | . . . . . . Robots Hopped . | . . . . . . Potential Cave-ins . | . . . . . . Cave-ins Triggered . | . . . . . . Exploration Rate (%) 59 | 4 97 56 95 92 11 Regions Visited 5 Branch Regions 3 Pre-discovered Areas 3 | . . 1 . 2 . Known Exits Taken 1 | . . 1 . . . Unknown Exits Taken 4 | 1 1 . 1 1 . Scrap Searched 7 | . . . . 7 . Spaces Dug 26 | . 14 . 6 . 6 Terrain Destroyed 558 | . 265 69 174 . 50 Melee . | . . . . . . Projectile 90 | . 3 . 44 . 43 AOE 468 | . 262 69 130 . 7 Terrain Rammed . | . . . . . . Walls Destroyed . | . . . . . . Machines Disabled . | . . . . . . Actions | -11 -10 -10 -7 -7 -5 --------- Run | Yrd Mat Sub Rec Scr Fac Total 10842 | 172 3351 978 1712 3522 1107 Wait 1389 | 17 1051 34 121 70 96 Move 8816 | 115 2040 911 1475 3435 840 Hop . | . . . . . . Pick Up . | . . . . . . Fast Attach 56 | 8 14 1 14 6 13 Attach . | . . . . . . Detach . | . . . . . . Swap 5 | . 1 . 1 3 . Drop 42 | . 13 2 10 8 9 Fire 430 | 32 204 23 74 . 97 Melee . | . . . . . . Ram 2 | . 1 . . . 1 Kick . | . . . . . . Crush . | . . . . . . Escape Stasis . | . . . . . . Rewire . | . . . . . . Trap . | . . . . . . Miscellaneous 102 | . 27 7 17 . 51 Route ------- -11/Scrapyard -10/Materials (discovered 5 exits: [*Mat x3] / *Min / *Sub) -10/Subcaves (discovered 2 exits: [*Mat] / *Rec) -7/Recycling (discovered 2 exits: *Fac / *Scr) -7/Scraptown (discovered 2 exits: *Fac x2) -5/Factory (discovered 1 exit: [*Upp]) History --------- Turn | Location | Event 3 | -11/Scrapyard | Discovered new exit (range 15) 9 | -11/Scrapyard | Upgraded with Utility slot (x1) 9 | -11/Scrapyard | Upgraded with Weapon slot (x3) 245 | -11/Scrapyard | Entered Materials 253 | -10/Materials | Identified exit to Mines 303 | -10/Materials | Build established: Gunner 450 | -10/Materials | Discovered new exit (range 4) 576 | -10/Materials | Discovered new exit (range 11) 794 | -10/Materials | Reached level 2 827 | -10/Materials | Discovered new exit (range 9) 891 | -10/Materials | Discovered new exit (range 13) 1280 | -10/Materials | Reached level 3 1725 | -10/Materials | Reached level 4 1766 | -10/Materials | Upgraded with Utility slot (x1) 1766 | -10/Materials | Upgraded with Weapon slot (x1) 4888 | -10/Materials | Upgraded with Propulsion slot (x1) 5243 | -10/Materials | Entered Subcaves 5245 | -10/Subcaves | Reached level 5 5247 | -10/Subcaves | Learned location of Zion (-7) 5315 | -10/Subcaves | Released subatomizers from SUBCON Basin 5405 | -10/Subcaves | Discovered new exit (range 11) 5509 | -10/Subcaves | Shifting Twisted Machinery released Flamer 5515 | -10/Subcaves | Shifting Twisted Machinery released Flamer 5572 | -10/Subcaves | Core integrity fell below 50% 5690 | -10/Subcaves | Visited Clippyterm 5692 | -10/Subcaves | Identified exit to Recycling 5770 | -10/Subcaves | Core integrity fell below 20% 5881 | -10/Subcaves | Entered Recycling 5883 | -7/Recycling | Reached level 6 6088 | -7/Recycling | Reached level 7 6503 | -7/Recycling | Discovered new exit (range 16) 6567 | -7/Recycling | Build established: Hacker-Gunner 7060 | -7/Recycling | Build established: Hacker-Tank 7398 | -7/Recycling | Reached level 8 7416 | -7/Recycling | Upgraded with Utility slot (x1) 7806 | -7/Recycling | Scanned before Scraplab entrance 8072 | -7/Recycling | Entered Scraplab 8081 | -7/Recycling | Discovered new exit (range 2) 8082 | -7/Recycling | Entered Scraptown 8082 | -7/Scraptown | System corruption cleaned by C-Scrubber 8288 | -7/Scraptown | Discovered new exit (range 13) 8434 | -7/Scraptown | Visited Spacefarers 8501 | -7/Scraptown | Visited TADAMA 8595 | -7/Scraptown | Visited Cyclists 8633 | -7/Scraptown | Visited UFD Registry 8633 | -7/Scraptown | Registered with UFD as "Monocell" 8633 | -7/Scraptown | Reached level 9 8660 | -7/Scraptown | Entered Cyclist Reading Room 8702 | -7/Scraptown | Visited Supply Room 8776 | -7/Scraptown | Heard Great Nut preacher, LISTEN AND RECITE! 9041 | -7/Scraptown | Visited Fellowship of the Rings 9098 | -7/Scraptown | Visited Junk Cannon Lab 9150 | -7/Scraptown | Visited Research Penetration Think Tank 9176 | -7/Scraptown | Visited Derelict Rescue Squad 9341 | -7/Scraptown | Visited Chapter 10 9376 | -7/Scraptown | Visited Scrapoid Pod Storage 9639 | -7/Scraptown | Visited DA-N13 Charitable Foundation 9657 | -7/Scraptown | Found DCF Scrap (29 items) 9698 | -7/Scraptown | Visited Junk Repository 9759 | -7/Scraptown | Visited LU-1G1's Boring Crew 10082 | -7/Scraptown | Found Scrapoid Pod 10388 | -7/Scraptown | Build established: Hacker-Gunner 10394 | -7/Scraptown | Visited Cartography Club 10562 | -7/Scraptown | Visited Science Guys 11355 | -7/Scraptown | Scrapoid Pod released 07S06-D (x5) 11496 | -7/Scraptown | Discovered new exit (range 5) 11704 | -7/Scraptown | Build established: Hacker-Tank 11724 | -7/Scraptown | Visited Scrapoid Research Area 11897 | -7/Scraptown | Visited Junk Repository 12206 | -7/Scraptown | Met Optimus 12206 | -7/Scraptown | Accepted into 0bPrime 12287 | -7/Scraptown | Entered Factory 12287 | -5/Factory | Accompanied by 5 allies 12288 | -5/Factory | Core integrity fell below 50% 12289 | -5/Factory | Reached level 10 12440 | -5/Factory | Core integrity fell below 20% 12444 | -5/Factory | Reached level 11 12475 | -5/Factory | Lost 5 allies 12729 | -5/Factory | Reached level 12 12966 | -5/Factory | Reached level 13 13026 | -5/Factory | Discovered new exit (range 7) 13034 | -5/Factory | Build established: Hacker-Gunner 13187 | -5/Factory | First assault squad dispatched 13419 | -5/Factory | Destroyed 8 combat bots 13554 | -5/Factory | Reached level 14 13648 | -5/Factory | Destroyed by P-70 Sage with Tesla Rifle Last Messages --------------- 13619_ Destroyed Wheel. 13619_ Slug penetrates G-50 Soldier. 13620_ K-01 Serf distress signal jammed. 13620_ K-01 Serf collects debris. 13637_ Repair Station disabled. 13637_ Backup Power I tumbles out of repair station. 13637_ Backup Plating I tumbles out of repair station. 13637_ Slug penetrates P-70 Sage. 13637_ Slug penetrates Wall. 13642_ Backup Propulsion I tumbles out of repair station. 13642_ Backup Laser I tumbles out of repair station. 13643_ Slug penetrates P-70 Sage. 13643_ P-70 Sage suffers critical hit (Destroy). 13643_ Destroyed Antigrav System. 13643_ Slug penetrates P-70 Sage. 13646_ System corrupted: Plasma Cannon failed to cycle. 13646_ Slug penetrates P-70 Sage. 13646_ P-70 Sage destroyed. 13646_ Switching to secondary target: P-70 Sage. 13646_ Slug penetrates Wall. Map ----- +----------------------------------------------------+ | ?????????? / % | | ????????? = = % * % | | ????????? !==% % %! ! | | ????????? *!!%###########= | | ????????? =%!%=#?##???##?##########/#### | | ????????? [=%#???? ???# ==% | | ????????? [#??""" ??## =! % "" | | ????????? # """ ?# % % """ | | ????????? " """ ?## "" | | ????????? # # #% =" "" | | ????????? #??""" ### "Y" | | ????????? #????" #?# """ | | ????????? #??????????############## | | ????????? #???????????????# | | ????????? #???????????????# """ | | ????????? ##??????????????# """ | | ????????? #??????????????# """ | | ????????? #??????????????# """ | | ????????? #??????????????# | | ?????????? #############g###?????????????# "" " "" | | ????????????????????# #?????????????# """ "" | | ??????????????????### #?????????????# """ "" | | ??????????????????# ;m""" #?????????????# """ " | | ??????????????????# ; "R ==#?????????????# | | ???????????????????##!p! #?????????????# | | ???????????????????#;!*![@ #?????????????######### | | ???????????????????####;####?????????????????????? | | ?????????????????????????????????????????????????? | | ?????????????????????????????????????????????????? | | ?????????????????????????????????????????????????? | | ?????????????????????????????????????????????????? | | ?????????????????????????????????????????????????? | | ?????????????????????????????????????????????????? | | ?????????????????????????????????????????????????? | | ?????????????????????????????????????????????????? | | ?????????????????????????????????????????????????? | | ?????????????????????????????????????????????????? | | ?????????????????????????????????????????????????? | | ?????????????????????????????????????????????????? | | ?????????????????????????????????????????????????? | | ?????????????????????????????????????????????????? | | ?????????????????????????????????????????????????? | | ?????????????????????????????????????????????????? | | ?????????????????????????????????????????????????? | | ?????????????????????????????????????????????????? | | ?????????????????????????????????????????????????? | | ?????????????????????????????????????????????????? | | ?????????????????????????????????????????????????? | | ?????????????????????????????????????????????????? | | ?????????????????????????????????????????????????? | +----------------------------------------------------+ Best States ------------- Heat Dissipation 61 Energy Generation 31 Energy Capacity 440 Matter Stores 400 Matter Capacity 400 Sight Range 16 Terrain Scan Range 16 Terrain Scan Density 10 Jamming Range 14 Cloak Strength 2 Armor Coverage 375 Resistance: KI 20 Resistance: TH 15 Power Shielding 90 Weapon Cycling 15 Evasion (%) 53 Offensive Hacking 30 Defensive Hacking 5 Item Schematics ----------------- None Robot Schematics ------------------ None Fabricated ------------ Nothing Repaired ---------- Nothing Alien Tech Used ----------------- None Achievements -------------- Hey, That's Mine! More Dakka Please Oops Challenges ------------ None RPGLIKE | -11 -10 -10 -7 -7 -5 --------- Run | Yrd Mat Sub Rec Scr Fac Levels Raised 13 | . 3 1 3 1 5 XP Earned 23456 | 3000 5872 1414 4145 900 8125 XP Spent 22460 | 2900 4350 . 6245 1150 7815 Upgrades 56 | 4 8 . 19 5 20 Propulsion Slot 1 | . 1 . . . . Utility Slot 3 | 1 1 . 1 . . Weapon Slot 4 | 3 1 . . . . Core Integrity 14 | . . . 9 . 5 Heat Dissipation 6 | . 1 . 2 . 3 Energy Generation 3 | . . . . 1 2 Energy Storage 3 | . . . . 2 1 Matter Storage 2 | . . . . 2 . Mass Support 1 | . 1 . . . . Ranged Accuracy 5 | . 3 . . . 2 Hack Attack % 6 | . . . 6 . . Hack Defense % 1 | . . . 1 . . TH Resistance % 3 | . . . . . 3 KI Damage % 4 | . . . . . 4 Protomatter Created 1072 | . 175 35 124 . 738 Integrity Restored 2110 | . 532 105 342 . 1131 Core 2102 | . 524 105 342 . 1131 Parts 8 | . 8 . . . . Protomatter Decayed 192 | . . . 10 . 182 Game ------ Seed SpacefoldStealthTearclaws Manual? 0 Play Time 01:46:13 Cumulative 7.8 hours Start 2025.05.22 @ 13:40:04 End 2025.05.22 @ 15:13:57 Sessions 1 Manual Loads 0 Difficulty Rogue Special Mode Winter2019/RPGLIKE Game No. 5 Rogue 5 Adventurer 0 Explorer 0 Win Type - Total 0 Types 0/0/0/0/0/0/0/0/0/0 Lore% 15 Gallery% 8 Achievement% 14 Wizard Run 0 Options --------- Layout 0 ASCII 0 Keyboard 0 Movement Mouse Keybinds 0 Fullscreen 2 Font 14/SmallcapsGlow Map View 36x27 Zoom Use 97% Tactical HUD 1 Map Filters NONE Filters NONE Steam 0 RUN: 1e8e76ee-2457-4919-8148-a34d4bca49cd